bitfinex/quotes_ETHUSD_20250603
["timestamp","ask_amount","ask_price","bid_price","bid_amount"]
[1748946179934,4.7981,2615.0,2614.8,2.3660938]
[1748946180999,0.9447,2615.2,2614.8,2.3660938]
[1748946181203,3.82362701,2615.4,2614.8,2.3660938]
[1748946181204,0.9447,2615.4,2615.1,2.3660938]
[1748946181505,4.34081297,2615.3,2615.1,2.3660938]
[1748946182500,8.16447988,2615.3,2615.1,2.3660938]
[1748946183265,8.16447988,2615.3,2614.9,6.97828834]
[1748946183592,7.68766691,2615.3,2614.9,6.97828834]
[1748946183795,3.82408147,2615.1,2614.7,3.15416777]
[1748946184001,3.864,2615.0,2614.7,12.880706]
[1748946184172,3.864,2615.0,2614.7,10.407237]
[1748946184363,3.864,2615.0,2614.7,11.82449849]
[1748946185500,3.864,2615.0,2614.3,1.2112096]
[1748946185501,0.9998,2614.9,2614.4,18.0]
[1748946185685,3.82428199,2614.9,2614.2,4.491593]
[1748946185893,4.82431711,2614.8,2614.4,8.0]
[1748946186067,3.864,2614.7,2614.4,8.0]
[1748946187891,3.864,2614.7,2614.3,8.0]
[1748946188067,3.864,2614.7,2614.3,11.82508482]
[1748946188767,3.864,2614.7,2614.3,4.10497686]
[1748946188997,3.864,2614.7,2614.3,13.82502343]
[1748946189198,3.864,2614.7,2614.4,10.0]
[1748946189518,0.9459,2614.6,2614.1,10.992]
[1748946189664,3.864,2614.5,2614.1,4.81739804]
[1748946189862,3.864,2614.5,2614.1,3.82539804]
[1748946191372,3.864,2614.5,2614.2,3.8252471]
[1748946191571,3.864,2614.5,2614.1,10.0]
[1748946191777,3.864,2614.5,2614.1,3.82532367]
[1748946192101,3.864,2614.5,2614.1,10.0]
[1748946192271,0.9459,2614.4,2614.0,6.97970056]
[1748946192610,0.9459,2614.4,2614.2,3.82524965]
[1748946193996,3.82519583,2614.3,2613.9,4.865721]
[1748946194197,3.864,2614.2,2613.9,8.6913257]
[1748946194404,3.864,2614.2,2614.0,10.0]
[1748946194910,3.864,2614.2,2613.9,6.97977247]
[1748946195208,3.864,2614.2,2614.0,10.0]
[1748946195365,1.0385,2614.1,2614.0,10.0]
[1748946196377,1.0385,2614.1,2613.9,6.97974434]
[1748946196591,1.0385,2614.1,2614.0,10.0]
[1748946196799,1.0385,2614.1,2613.9,3.15416777]
[1748946197114,1.0385,2614.1,2614.0,10.0]
[1748946197518,1.0385,2614.1,2613.9,3.15416777]
[1748946197691,1.0385,2614.1,2614.0,10.0]
[1748946197877,1.0385,2614.1,2613.9,14.689704]
[1748946198079,1.0385,2614.1,2613.9,4.689704]
[1748946198389,1.0385,2614.1,2613.9,14.693528]
[1748946198584,1.0385,2614.1,2613.8,0.38313239]
[1748946198819,3.864,2614.0,2613.7,7.18260275]
[1748946199815,3.864,2614.0,2613.7,7.56928734]
[1748946200414,3.864,2614.0,2613.7,0.38668459]
[1748946200415,3.82570105,2613.9,2613.7,0.38668459]
[1748946200578,1.0203,2613.8,2613.7,0.38668459]
[1748946200779,1.0203,2613.8,2613.5,6.9804243]
[1748946200996,3.864,2613.7,2613.5,7.17874431]
[1748946201517,1.0203,2613.8,2613.5,3.35248778]
[1748946201738,3.864,2613.6,2613.5,14.02459171]
[1748946202802,3.864,2613.6,2613.5,17.17875948]
[1748946203122,3.864,2613.6,2613.5,17.56882199]
[1748946203800,3.864,2613.6,2613.5,25.56882199]
[1748946204210,3.864,2613.6,2613.5,15.56882199]
[1748946204394,3.864,2613.6,2613.5,19.04698699]
[1748946204592,3.864,2613.6,2613.5,11.74255029]
[1748946204895,3.8256307,2614.0,2613.6,8.0]
[1748946205095,3.864,2613.9,2613.7,3.15416777]
[1748946205295,4.69275364,2614.0,2613.7,3.15416777]
[1748946205477,3.864,2613.9,2613.7,3.15416777]
[1748946209296,1.0313,2613.8,2613.7,3.15416777]
[1748946213228,3.864,2613.9,2613.7,3.15416777]
[1748946217950,3.864,2613.8,2613.7,3.15416777]
[1748946218191,3.864,2613.8,2613.7,11.15416777]
[1748946231994,3.82577822,2613.9,2613.7,11.15416777]
[1748946232195,3.864,2613.8,2613.7,11.15416777]
[1748946237718,4.80982194,2614.0,2613.7,11.15416777]
[1748946237888,3.864,2613.9,2613.8,8.0]
[1748946239719,0.9842,2614.0,2613.8,8.0]
[1748946240026,3.864,2613.9,2613.8,8.0]
[1748946240524,4.80976807,2614.0,2613.8,8.0]
[1748946240674,1.0605,2614.3,2614.0,3.82554865]
[1748946241030,3.864,2614.2,2614.1,3.15416777]
[1748946241172,3.864,2614.2,2614.1,2.36720156]
[1748946241605,7.68926203,2614.2,2614.1,2.36720156]
[1748946243296,7.68926203,2614.2,2614.0,3.15665564]
[1748946245209,3.863,2614.1,2614.0,3.15665564]
[1748946245394,3.863,2614.1,2614.0,11.15665564]
[1748946246008,7.68840836,2614.1,2614.0,11.15665564]
[1748946247330,3.82578912,2613.9,2613.6,3.15665564]
[1748946247633,3.863,2613.8,2613.6,11.82613736]
[1748946247795,3.863,2613.8,2613.7,3.15665564]
[1748946247998,4.86243228,2614.2,2613.8,11.82579063]
[1748946248200,3.863,2614.1,2613.8,11.82579063]
[1748946248686,3.863,2614.1,2613.8,8.0]
[1748946249338,3.863,2614.1,2614.0,3.15665564]
[1748946252312,7.68840836,2614.1,2614.0,3.15665564]
[1748946252506,3.863,2614.1,2614.0,3.15665564]
[1748946253241,3.82499302,2614.4,2614.0,14.98214398]
[1748946253439,3.863,2614.3,2614.2,3.15665564]
[1748946253609,3.82499302,2614.4,2614.2,3.15665564]
[1748946253805,3.863,2614.3,2614.2,3.15665564]
[1748946255725,3.82498465,2614.4,2614.2,3.15665564]
[1748946255928,3.863,2614.3,2614.2,3.15665564]
[1748946256758,7.6881765,2614.3,2614.1,8.0]
[1748946257843,7.68820314,2614.3,2614.1,8.0]
[1748946259255,3.82520314,2614.3,2614.1,8.0]
[1748946259442,3.863,2614.2,2614.1,8.0]
[1748946260910,3.82498463,2614.4,2614.1,8.0]
[1748946261250,3.863,2614.3,2614.2,3.15665564]
[1748946261646,0.9612,2614.9,2614.3,10.0]
[1748946261846,3.82477505,2614.6,2614.4,3.15665564]
[1748946262053,3.863,2614.5,2614.4,3.15665564]
[1748946262217,3.82460188,2614.7,2614.4,3.15665564]
[1748946262416,7.68769427,2614.6,2614.4,3.15665564]
[1748946262649,3.863,2614.5,2614.4,3.15665564]
[1748946263563,3.863,2614.5,2614.3,8.0]
[1748946265664,7.68788966,2614.5,2614.3,8.0]
[1748946265844,3.863,2614.5,2614.3,8.0]
[1748946266167,0.9575,2614.4,2613.7,1.2112096]
[1748946266328,4.78251141,2614.4,2613.8,3.82578588]
[1748946266532,4.78251141,2614.4,2614.0,8.0]
[1748946266533,3.862,2614.3,2614.0,8.0]
[1748946266717,3.82523808,2614.3,2614.0,8.0]
[1748946267066,3.862,2614.2,2614.0,8.0]
[1748946267632,3.862,2614.1,2614.0,8.0]
[1748946273146,3.82609822,2613.7,2613.5,0.39006251]
[1748946273351,3.862,2613.6,2613.5,8.0]
[1748946274239,3.862,2613.6,2613.5,8.3861324]
[1748946279308,7.68814018,2613.6,2613.5,0.3861324]
[1748946279473,3.82607227,2613.7,2613.5,8.3861324]
[1748946279662,3.863,2613.6,2613.5,8.0]
[1748946281703,3.863,2613.6,2613.5,8.38533421]
[1748946282712,7.68914018,2613.6,2613.5,8.38533421]
[1748946283209,7.68914018,2613.6,2613.3,3.15665564]
[1748946284113,3.863,2613.6,2613.3,13.15665564]
[1748946284406,3.863,2613.6,2613.3,13.35428423]
[1748946284875,7.68916884,2613.6,2613.3,3.35428423]
[1748946285220,3.82635297,2613.5,2613.3,3.53553066]
[1748946285373,3.863,2613.4,2613.3,3.53553066]
[1748946289017,0.9387,2614.4,2613.4,20.0]
[1748946289220,0.9387,2614.4,2614.0,3.82551816]
[1748946289518,3.8248307,2614.5,2613.6,20.0]
[1748946289519,3.866,2614.3,2614.1,3.82533257]
[1748946289815,4.76337789,2614.6,2613.7,3.8259938]
[1748946289816,0.9387,2614.6,2614.2,3.82523862]
[1748946290114,3.866,2614.5,2614.1,3.82532542]
[1748946290616,3.866,2614.5,2614.1,3.15665564]
[1748946290785,1.0108,2614.4,2613.7,3.15665564]
[1748946290985,3.82532786,2614.2,2613.7,6.98264905]
[1748946291187,3.82532786,2614.2,2613.7,3.15665564]
[1748946291423,0.934,2614.0,2613.7,3.15665564]
[1748946291618,3.866,2613.9,2613.7,3.15665564]
[1748946291918,3.866,2613.9,2613.8,10.0]
[1748946292215,4.75626511,2614.2,2613.8,13.82584742]
[1748946292416,3.866,2614.1,2613.9,3.15665564]
[1748946295304,3.866,2614.1,2613.7,3.15665564]
[1748946295817,7.69149319,2614.1,2613.7,6.98264295]
[1748946298379,7.69149319,2614.1,2613.8,10.0]
[1748946298614,3.866,2614.1,2613.8,10.0]
[1748946298820,3.866,2614.1,2613.7,6.98263142]
[1748946299125,7.69141509,2614.1,2613.8,10.0]
[1748946299278,7.69141509,2614.1,2613.7,6.98262226]
[1748946299639,3.863,2614.0,2613.9,3.15665564]
[1748946300680,3.82542171,2614.1,2613.9,3.15665564]
[1748946300909,3.863,2614.0,2613.9,3.15665564]
[1748946301950,4.75635152,2614.2,2613.9,3.15665564]
[1748946302164,3.862,2614.0,2613.9,3.15665564]
[1748946302736,3.82519955,2614.3,2613.9,3.15665564]
[1748946302737,3.82519955,2614.3,2613.9,6.9823522]
[1748946302916,7.68733686,2614.2,2613.9,3.15665564]
[1748946304829,3.862,2614.1,2613.9,13.15665564]
[1748946305027,3.862,2614.1,2613.9,3.15665564]
[1748946305738,3.862,2614.1,2613.9,13.15665564]
[1748946305950,3.862,2614.1,2613.9,3.15665564]
[1748946306163,3.862,2614.0,2613.9,3.15665564]
[1748946307668,3.862,2614.0,2613.9,13.15665564]
[1748946307970,3.862,2614.0,2613.9,3.15665564]
[1748946308433,3.862,2614.0,2613.7,6.98258081]
[1748946309456,3.862,2614.0,2613.7,3.15665564]
[1748946309976,3.862,2614.0,2613.7,6.98263045]
[1748946310674,3.862,2614.0,2613.7,6.98263362]
[1748946311062,3.862,2614.0,2613.7,3.15665564]
[1748946311262,3.862,2614.0,2613.7,6.98263462]
[1748946311439,3.862,2614.0,2613.7,6.9826453]
[1748946311640,3.862,2614.0,2613.7,16.9826453]
[1748946311866,3.862,2614.0,2613.7,13.15665564]
[1748946312198,3.862,2614.0,2613.7,16.98260973]
[1748946312479,3.862,2614.0,2613.7,6.98260973]
[1748946313562,3.862,2614.0,2613.7,6.98259108]
[1748946313886,3.82521917,2614.3,2613.9,3.15665564]
[1748946314040,7.68726323,2614.2,2613.9,13.15665564]
[1748946314239,3.862,2614.1,2613.9,6.98233069]
[1748946314470,3.862,2614.1,2613.9,3.15665564]
[1748946316190,3.82520561,2614.3,2613.9,3.15665564]
[1748946316487,7.68726965,2614.2,2613.9,3.15665564]
[1748946316904,7.68726965,2614.2,2613.9,13.15665564]
[1748946317062,7.68726965,2614.2,2613.9,3.15665564]
[1748946317786,3.862,2614.2,2613.9,3.15665564]
[1748946318102,3.82546537,2614.1,2613.9,3.15665564]
[1748946318269,3.862,2614.0,2613.9,3.15665564]
[1748946318883,3.82534331,2614.2,2613.9,3.15665564]
[1748946319081,3.862,2614.1,2613.9,13.15665564]
[1748946319687,3.862,2614.1,2613.9,3.15665564]
[1748946320005,3.862,2614.1,2613.9,13.15665564]
[1748946320672,3.862,2614.1,2613.9,3.15665564]
[1748946321097,3.862,2614.1,2613.9,13.15665564]
[1748946321372,3.862,2614.1,2613.9,3.15665564]
[1748946321568,3.862,2614.1,2613.9,13.15665564]
[1748946322200,3.862,2614.1,2613.9,3.15665564]
[1748946322609,3.862,2614.1,2613.9,13.15665564]
[1748946323196,3.862,2614.1,2613.9,3.15665564]
[1748946323499,3.862,2614.1,2613.9,13.15665564]
[1748946323998,3.862,2614.1,2613.9,3.15665564]
[1748946324606,3.862,2614.1,2613.9,13.15665564]
[1748946325001,3.862,2614.1,2613.9,3.15665564]
[1748946325320,3.862,2614.1,2613.9,13.15665564]
[1748946325501,3.862,2614.1,2613.9,3.15665564]
[1748946327415,7.68740887,2614.1,2613.9,3.15665564]
[1748946327582,3.862,2614.1,2613.9,3.15665564]
[1748946327927,7.68743276,2614.1,2613.9,3.15665564]
[1748946328278,3.862,2614.1,2613.9,3.15665564]
[1748946328481,3.862,2614.1,2613.9,13.15665564]
[1748946329111,3.862,2614.1,2613.9,3.15665564]
[1748946329419,3.862,2614.1,2613.9,13.15665564]
[1748946329633,3.862,2614.1,2613.9,3.15665564]
[1748946329795,3.862,2614.1,2613.9,13.15665564]
[1748946332106,3.85794497,2614.1,2613.9,13.15665564]
[1748946334535,3.82468099,2614.6,2614.1,3.82528259]
[1748946334536,3.82476825,2614.6,2614.1,3.82528259]
[1748946334762,3.862,2614.5,2614.2,3.82516472]
[1748946335026,4.88788799,2614.7,2613.9,8.0]
[1748946335027,1.0633,2614.7,2614.4,3.15665564]
[1748946335228,3.862,2614.6,2614.4,3.15665564]
[1748946335900,3.862,2614.5,2614.4,3.15665564]
[1748946336525,3.862,2614.5,2614.3,8.0]
[1748946337022,3.862,2614.5,2614.3,11.82509195]
[1748946337545,3.862,2614.5,2614.3,8.0]
[1748946338544,7.68688968,2614.5,2614.1,8.0]
[1748946338757,7.68688968,2614.5,2614.1,11.82538524]
[1748946339709,3.862,2614.5,2614.1,11.82538524]
[1748946339943,4.88300395,2614.4,2614.1,8.0]
[1748946340144,3.862,2614.3,2614.1,8.0]
[1748946340449,3.862,2614.3,2613.9,8.0]
[1748946340655,3.862,2614.3,2613.9,11.82560966]
[1748946340952,3.862,2614.3,2613.9,8.0]
[1748946341110,3.862,2614.3,2614.0,3.82555123]
[1748946342914,3.862,2614.3,2613.9,11.82565044]
[1748946343530,3.862,2614.3,2614.0,3.82553509]
[1748946343947,3.862,2614.3,2613.9,11.82564158]
[1748946344453,0.9826,2614.2,2613.9,11.82564158]
[1748946344646,3.862,2614.1,2613.9,11.82564158]
[1748946344828,3.862,2614.1,2614.0,8.0]
[1748946345432,3.862,2614.1,2614.0,11.8255547]
[1748946346521,3.862,2614.1,2614.0,12.2078547]
[1748946346727,3.862,2614.1,2614.0,11.8255547]
[1748946349565,3.862,2614.1,2614.0,14.98221034]
[1748946353929,3.862,2614.1,2614.0,11.8255547]
[1748946358284,3.862,2614.1,2614.0,3.8255547]
[1748946360690,3.862,2614.1,2613.4,4.23637666]
[1748946360691,3.82577029,2613.9,2613.4,4.23637666]
[1748946360873,3.861,2613.8,2613.4,0.41000731]
[1748946361079,1.0286,2613.7,2613.4,4.23634746]
[1748946361282,3.861,2613.6,2613.4,12.23640677]
[1748946361790,1.0286,2613.7,2613.5,3.82626423]
[1748946361992,3.861,2613.6,2613.5,11.82626423]
[1748946362195,3.861,2613.6,2613.5,14.98291987]
[1748946362400,3.861,2613.6,2613.5,11.15665564]
[1748946362892,3.861,2613.6,2613.5,14.98294222]
[1748946363403,3.861,2613.6,2613.5,6.98294222]
[1748946365259,3.862,2613.6,2613.5,6.98294222]
[1748946366285,3.862,2613.6,2613.5,3.15665564]
[1748946366489,3.862,2613.6,2613.5,6.98294222]
[1748946366690,3.862,2613.6,2613.5,3.15665564]
[1748946367689,3.862,2613.6,2613.5,6.98294222]
[1748946368079,3.862,2613.6,2613.5,3.15665564]
[1748946371799,0.9734,2613.7,2613.5,6.98288103]
[1748946372006,4.8643543,2614.0,2613.6,8.0]
[1748946372205,0.91742399,2613.9,2613.7,3.15665564]
[1748946372408,3.862,2613.8,2613.7,3.15665564]
[1748946372971,7.68784742,2613.8,2613.7,3.15665564]
[1748946373385,3.862,2613.8,2613.7,3.15665564]
[1748946375501,7.68784742,2613.8,2613.7,3.15665564]
[1748946377475,7.68794633,2613.8,2613.6,3.15665564]
[1748946377813,3.8259938,2613.7,2613.6,3.15665564]
[1748946378112,4.8010938,2613.7,2613.6,3.15665564]
[1748946378617,4.8010938,2613.7,2613.3,0.37887502]
[1748946378618,3.82643299,2613.4,2613.3,0.37887502]
[1748946378908,3.82658357,2613.3,2613.1,3.15665564]
[1748946379067,3.862,2613.2,2613.1,7.37271234]
[1748946379274,7.68872585,2613.2,2613.1,0.3801687]
[1748946379617,7.68872585,2613.2,2613.0,8.0]
[1748946379618,3.862,2613.2,2613.0,8.0]
[1748946379990,3.862,2613.2,2613.0,8.3555256]
[1748946380506,7.68877974,2613.2,2613.0,8.3555256]
[1748946381020,3.862,2613.2,2613.0,8.3555256]
[1748946382146,4.83757229,2613.1,2613.0,0.3555256]
[1748946382452,1.0107,2613.1,2612.9,3.15665564]
[1748946382649,1.0107,2613.1,2612.9,11.15665564]
[1748946382650,3.862,2613.0,2612.9,11.15665564]
[1748946383208,3.862,2613.0,2612.9,11.49626862]
[1748946383404,0.9281,2613.3,2612.9,22.17316231]
[1748946383644,3.82607609,2613.7,2613.2,6.98331704]
[1748946383851,3.82607609,2613.7,2613.6,3.15665564]
[1748946384045,7.68807609,2613.7,2613.6,3.15665564]
[1748946385011,7.68807609,2613.7,2613.4,3.15665564]
[1748946386048,7.6880775,2613.7,2613.4,3.15665564]
[1748946386431,3.82615965,2613.6,2613.4,3.10665564]
[1748946386612,3.862,2613.5,2613.4,3.10665564]
[1748946387858,4.80071572,2613.8,2613.4,3.10665564]
[1748946388044,3.862,2613.7,2613.6,3.15665564]
[1748946388444,7.6879938,2613.7,2613.6,3.15665564]
[1748946389215,3.82617993,2613.6,2613.4,3.15665564]
[1748946389517,3.862,2613.5,2613.4,3.15665564]
[1748946390765,1.011,2614.1,2613.5,11.82623993]
[1748946390933,1.0077,2614.3,2613.9,3.15665564]
[1748946391153,3.82541617,2614.1,2613.9,3.15665564]
[1748946391537,3.862,2614.0,2613.9,3.15665564]
[1748946394984,7.6875547,2614.0,2613.9,3.15665564]
[1748946396982,3.862,2614.0,2613.9,3.15665564]
[1748946398152,3.82546325,2614.1,2613.9,3.15665564]
[1748946398359,3.862,2614.0,2613.8,3.15665564]
[1748946398758,3.861,2613.9,2613.8,13.15665564]
[1748946399187,3.861,2613.9,2613.8,3.15665564]
[1748946400887,3.861,2613.9,2613.7,10.0]
[1748946401187,7.68670117,2613.9,2613.7,10.0]
[1748946401505,0.9285,2614.8,2613.9,10.0]
[1748946401645,0.9285,2614.8,2614.3,3.15665564]
[1748946401646,7.68562444,2614.7,2614.3,3.15665564]
[1748946401994,7.68562444,2614.7,2614.3,13.15665564]
[1748946402676,7.68555149,2614.7,2614.3,3.15665564]
[1748946403382,3.82471168,2614.6,2614.1,6.98198429]
[1748946403584,3.861,2614.5,2614.1,6.98198429]
[1748946404202,3.861,2614.5,2614.2,8.0]
[1748946404852,6.04742632,2614.5,2614.2,8.0]
[1748946405297,3.82461291,2614.7,2614.2,14.9819071]
[1748946405602,7.6857473,2614.6,2614.2,11.15665564]
[1748946406307,7.6857473,2614.6,2614.2,8.0]
[1748946406475,7.6857473,2614.6,2614.1,3.43131444]
[1748946406873,7.6857473,2614.6,2614.1,3.82529674]
[1748946408096,1.25457077,2614.6,2613.7,0.3824]
[1748946408403,1.0231,2614.4,2613.9,12.349347]
[1748946408605,7.68617582,2614.3,2613.9,12.349347]
[1748946408807,7.68617582,2614.3,2613.8,2.387963]
[1748946408808,3.82532458,2614.2,2613.8,2.387963]
[1748946409106,7.68620132,2614.3,2613.9,2.353171]
[1748946409318,7.68619821,2614.3,2613.9,2.353171]
[1748946409475,8.93962836,2614.3,2613.9,2.353171]
[1748946412705,8.93962836,2614.3,2613.9,6.17886221]
[1748946412904,8.93962836,2614.3,2613.9,3.82569121]
[1748946413104,8.93962836,2614.3,2613.8,13.82576005]
[1748946413311,8.93962836,2614.3,2613.9,2.325664]
[1748946413489,0.99627284,2614.2,2613.9,2.325664]
[1748946414414,0.99627284,2614.2,2613.9,3.82569125]
[1748946415916,0.99627284,2614.2,2613.9,12.304979]
[1748946416082,0.99627284,2614.2,2613.8,3.82578581]
[1748946416282,0.99627284,2614.2,2613.7,3.15665564]
[1748946416482,3.861,2614.1,2613.7,3.15665564]
[1748946416745,3.861,2614.1,2613.9,3.82564227]
[1748946420337,3.861,2614.1,2614.0,3.8255547]
[1748946420515,3.861,2614.1,2613.9,3.82561501]
[1748946420821,4.8805,2614.1,2613.9,3.82561501]
[1748946422331,5.87640796,2614.1,2613.5,3.15665564]
[1748946422536,9.70195331,2614.1,2613.6,3.82608101]
[1748946422737,3.82557164,2614.0,2613.6,3.82613538]
[1748946422950,4.7777547,2614.0,2613.5,10.0]
[1748946423153,0.9522,2614.0,2613.6,3.82612666]
[1748946423302,2.29819197,2614.0,2613.6,3.82612666]
[1748946423496,2.29819197,2614.0,2613.7,3.82598522]
[1748946425337,2.29819197,2614.0,2613.7,3.82590774]
[1748946425840,1.0249,2614.3,2613.9,6.98225961]
[1748946426000,1.0249,2614.3,2614.1,3.15665564]
[1748946426203,3.861,2614.2,2614.1,6.98195986]
[1748946426600,1.0249,2614.5,2614.2,3.82524726]
[1748946427326,3.8244265,2614.8,2614.5,3.82473649]
[1748946427327,0.9654,2614.8,2614.5,3.82473649]
[1748946427633,3.863,2614.7,2614.5,6.98141261]
[1748946428227,3.863,2614.7,2614.5,3.15665564]
[1748946428428,3.863,2614.7,2614.3,6.9817113]
[1748946428797,3.863,2614.7,2614.4,3.82494279]
[1748946429503,3.863,2614.7,2614.5,3.82481108]
[1748946429705,0.02,2614.9,2614.6,3.82455789]
[1748946429905,0.02,2614.9,2613.7,0.70756105]
[1748946429906,3.862,2614.6,2613.7,0.70756105]
[1748946430137,3.862,2614.6,2614.4,6.98158088]
[1748946430447,3.862,2614.6,2614.5,3.8248231]
[1748946431042,3.862,2614.6,2614.4,6.98154721]
[1748946431203,3.862,2614.6,2614.5,3.8248231]
[1748946431399,3.862,2614.6,2614.5,4.19930971]
[1748946431604,3.862,2614.6,2614.5,0.37448661]
[1748946431803,3.862,2614.6,2614.4,6.98154534]
[1748946433514,0.02,2614.9,2614.4,3.15665564]
[1748946433728,0.02,2614.9,2614.6,3.15665564]
[1748946434028,0.02,2614.9,2614.6,6.9813242]
[1748946434233,3.861,2614.8,2614.6,6.9813242]
[1748946434445,3.861,2614.8,2614.6,3.15665564]
[1748946437485,3.86,2614.7,2614.6,3.15665564]
[1748946437830,3.863,2615.2,2615.0,3.8240295]
[1748946438046,3.863,2615.2,2615.0,3.15665564]
[1748946441831,3.863,2615.2,2614.9,3.82423734]
[1748946442279,3.863,2615.2,2615.0,13.8240889]
[1748946442574,3.863,2615.2,2615.0,3.8240889]
[1748946442777,3.863,2615.2,2615.0,10.0]
[1748946443083,3.863,2615.2,2614.9,3.82416051]
[1748946443384,3.82337391,2615.5,2615.0,3.82398985]
[1748946443527,7.68450958,2615.4,2615.0,6.98064549]
[1748946443742,7.68450958,2615.4,2615.0,13.15665564]
[1748946443949,7.68450958,2615.4,2615.0,3.15665564]
[1748946445390,3.861,2615.4,2614.8,3.15665564]
[1748946445598,7.68455888,2615.4,2614.8,6.98101099]
[1748946445779,0.51916374,2615.3,2614.8,6.98101099]
[1748946446103,3.82381258,2615.2,2614.8,6.98101099]
[1748946446254,3.86,2615.1,2614.8,6.98101099]
[1748946448765,3.86,2615.1,2614.9,13.82421843]
[1748946449365,3.86,2615.1,2614.8,6.98095142]
[1748946449551,3.86,2615.0,2614.8,13.15665564]
[1748946449751,3.86,2615.0,2614.8,6.98097406]
[1748946452194,3.86,2615.0,2614.9,3.82423802]
[1748946452401,4.43195777,2617.0,2614.9,3.82423802]
[1748946452402,0.9922,2615.9,2614.9,10.0]
[1748946452686,3.82307362,2615.7,2615.3,3.15665564]
[1748946452891,1.15060042,2615.6,2615.2,3.82376152]
[1748946453054,3.86,2615.5,2615.2,3.82376152]
[1748946454187,3.86,2615.4,2615.2,3.82376152]
[1748946454494,3.86,2615.4,2615.2,3.82379157]
[1748946454794,3.86,2615.4,2615.2,4.36017024]
[1748946454999,3.86,2615.4,2615.2,0.53637867]
[1748946455485,3.86,2615.4,2615.1,6.98052975]
[1748946456680,3.86,2615.3,2615.2,3.82368812]
[1748946456880,0.9496,2615.7,2615.3,10.0]
[1748946457186,0.9496,2615.7,2615.4,6.98015943]
[1748946457390,1.0374,2615.9,2615.6,3.15665564]
[1748946457609,4.8601967,2615.9,2615.6,3.15665564]
[1748946457813,3.859,2615.8,2615.4,6.98007448]
[1748946457973,7.68195887,2615.8,2615.4,3.15665564]
[1748946458181,7.68195887,2615.8,2615.4,6.98015778]
[1748946458382,3.859,2615.8,2615.4,6.98015778]
[1748946458917,7.68192463,2615.8,2615.4,6.98015778]
[1748946459279,3.859,2615.8,2615.5,3.82329989]
[1748946459481,3.859,2615.8,2615.4,6.98008974]
[1748946459677,3.859,2615.7,2615.5,3.82334702]
[1748946460013,3.859,2615.7,2615.4,6.98008974]
[1748946460811,3.82292283,2615.8,2615.4,6.98008974]
[1748946460968,3.859,2615.6,2615.4,6.98008974]
[1748946461510,3.82292283,2615.8,2615.4,6.98008974]
[1748946461661,3.859,2615.7,2615.4,6.98008974]
[1748946464130,1.0374,2615.9,2615.6,3.15665564]
[1748946464433,0.02,2615.9,2615.6,3.15665564]
[1748946464599,3.859,2615.8,2615.6,3.15665564]
[1748946466991,0.02,2615.9,2615.6,3.15665564]
[1748946467191,3.859,2615.8,2615.6,3.15665564]
[1748946469113,3.84279305,2615.9,2615.6,3.15665564]
[1748946469318,3.859,2615.7,2615.6,3.15665564]
[1748946469680,0.02,2615.9,2615.6,3.15665564]
[1748946469880,3.859,2615.7,2615.6,3.15665564]
[1748946470309,3.859,2615.7,2615.5,3.82326187]
[1748946471403,0.02,2615.9,2615.5,3.82326187]
[1748946471623,3.859,2615.8,2615.5,3.82326187]
[1748946471830,3.859,2615.8,2615.4,6.98014005]
[1748946472212,3.842838,2615.9,2615.4,6.98014005]
[1748946472526,0.02,2615.9,2615.5,3.82328711]
[1748946472830,3.859,2615.8,2615.5,3.82335204]
[1748946473331,7.68192979,2615.8,2615.4,6.98007371]
[1748946473505,3.859,2615.8,2615.5,3.8233474]
[1748946473695,3.859,2615.8,2615.4,6.98011346]
[1748946474034,3.859,2615.8,2615.5,3.82331854]
[1748946474324,0.02,2615.9,2615.4,6.98015029]
[1748946474526,3.859,2615.7,2615.4,6.98015029]
[1748946474727,0.02,2615.9,2615.5,3.82326951]
[1748946474931,0.02,2615.9,2615.6,6.97984618]
[1748946475336,0.02,2615.9,2615.6,3.15665564]
[1748946475527,3.879,2615.9,2615.7,3.82300559]
[1748946475915,3.879,2615.9,2615.6,6.97977376]
[1748946476115,3.879,2615.9,2615.6,3.15665564]
[1748946476315,0.02,2615.9,2615.7,3.82305095]
[1748946476514,3.859,2615.8,2615.7,3.82305095]
[1748946477126,3.859,2615.8,2615.6,6.97976784]
[1748946477315,3.859,2615.8,2615.7,3.82306839]
[1748946477924,3.859,2615.8,2615.6,6.97980245]
[1748946478439,3.859,2615.8,2615.7,3.82306839]
[1748946478752,3.858,2615.8,2615.6,3.15665564]
[1748946478954,3.858,2615.8,2615.7,3.82306424]
[1748946479941,3.858,2615.8,2615.7,3.82306839]
[1748946480118,0.02,2615.9,2615.7,3.82306839]
[1748946480317,3.858,2615.8,2615.7,3.82306839]
[1748946480845,3.858,2615.8,2615.5,3.82326837]
[1748946481141,3.858,2615.8,2615.5,13.82326837]
[1748946481365,3.858,2615.8,2615.3,3.82362466]
[1748946481366,1.0406,2615.7,2615.3,11.82357131]
[1748946482139,4.86368377,2615.7,2615.3,11.82357131]
[1748946482344,1.0406,2615.7,2615.3,11.82357131]
[1748946483342,7.6809718,2615.8,2615.3,11.82359443]
[1748946483546,7.6809718,2615.8,2615.4,3.82347556]
[1748946484369,7.6809718,2615.8,2615.3,11.82358398]
[1748946484525,3.82307831,2615.7,2615.3,8.0]
[1748946484844,3.858,2615.8,2615.3,8.0]
[1748946484845,1.0446,2615.5,2615.3,18.0]
[1748946485008,4.9026,2615.5,2615.4,8.0]
[1748946485210,3.858,2615.5,2615.3,11.82364183]
[1748946485505,3.858,2615.5,2615.4,3.15665564]
[1748946485709,1.0446,2615.7,2615.5,10.0]
[1748946485911,3.858,2615.6,2615.4,14.98007315]
[1748946486164,3.858,2615.6,2615.4,6.98007315]
[1748946486615,3.858,2615.6,2615.4,14.98007315]